[Event "Early-Titled-Tuesday-Blitz-April-16-2024"]
[Site "Chess.com"]
[Date "2024.04.16"]
[Round "4"]
[White "GHANDEEVAM2003"]
[Black "Alen_Yeremyann"]
[Result "0-1"]
[WhiteElo "3013"]
[BlackElo "2835"]
[TimeControl "180+1"]
[EndTime "8:39:45 PDT"]
[Termination "Alen_Yeremyann won by resignation"]

1. Nf3 {[%clk 0:03:00.9]} 1... Nf6 {[%clk 0:02:55.4]} 2. b3 {[%clk 0:02:59.9]}
2... b6 {[%clk 0:02:54.5]} 3. Bb2 {[%clk 0:02:58]} 3... Bb7 {[%clk 0:02:55.2]}
4. c4 {[%clk 0:02:58.5]} 4... c5 {[%clk 0:02:54.8]} 5. Nc3 {[%clk 0:02:57.9]}
5... g6 {[%clk 0:02:54.7]} 6. e4 {[%clk 0:02:53]} 6... Bg7 {[%clk 0:02:53.9]} 7.
Nd5 {[%clk 0:02:51.4]} 7... O-O {[%clk 0:02:35]} 8. Nxf6+ {[%clk 0:02:50.8]}
8... Bxf6 {[%clk 0:02:35.7]} 9. Bxf6 {[%clk 0:02:50.3]} 9... exf6 {[%clk
0:02:36.4]} 10. d3 {[%clk 0:02:50.8]} 10... f5 {[%clk 0:02:33]} 11. Nd2 {[%clk
0:02:28.4]} 11... fxe4 {[%clk 0:02:32]} 12. dxe4 {[%clk 0:02:28.1]} 12... Re8
{[%clk 0:02:32.1]} 13. Bd3 {[%clk 0:02:27.6]} 13... Nc6 {[%clk 0:02:32.8]} 14.
O-O {[%clk 0:02:27.1]} 14... Nd4 {[%clk 0:02:28.2]} 15. Re1 {[%clk 0:02:18.4]}
15... d6 {[%clk 0:02:25.9]} 16. Nf1 {[%clk 0:02:16.7]} 16... Qf6 {[%clk
0:02:25]} 17. f3 {[%clk 0:02:16.4]} 17... h5 {[%clk 0:02:21.6]} 18. Ne3 {[%clk
0:02:15.5]} 18... h4 {[%clk 0:02:22.1]} 19. Ng4 {[%clk 0:02:11.4]} 19... Qg5
{[%clk 0:02:21.8]} 20. Qc1 {[%clk 0:02:09.8]} 20... Qxc1 {[%clk 0:02:17.2]} 21.
Raxc1 {[%clk 0:02:10.7]} 21... Kg7 {[%clk 0:02:16.4]} 22. Kf2 {[%clk 0:02:11.3]}
22... h3 {[%clk 0:02:07.3]} 23. gxh3 {[%clk 0:02:09.1]} 23... f5 {[%clk
0:02:04.9]} 24. exf5 {[%clk 0:02:08.4]} 24... gxf5 {[%clk 0:02:05.6]} 25. Ne3
{[%clk 0:02:06.5]} 25... Kf6 {[%clk 0:02:06.3]} 26. Nd5+ {[%clk 0:01:51.4]}
26... Bxd5 {[%clk 0:02:04.8]} 27. cxd5 {[%clk 0:01:52.3]} 27... Rh8 {[%clk
0:02:05]} 28. Bf1 {[%clk 0:01:52.4]} 28... Rae8 {[%clk 0:01:55.8]} 29. f4 {[%clk
0:01:37.7]} 29... Re4 {[%clk 0:01:38]} 30. Rxe4 {[%clk 0:01:30.1]} 30... fxe4
{[%clk 0:01:38.8]} 31. Bg2 {[%clk 0:01:30.8]} 31... Re8 {[%clk 0:01:31.6]} 32.
Rc3 {[%clk 0:01:22.3]} 32... Nf5 {[%clk 0:01:25.8]} 33. Ke1 {[%clk 0:01:09.1]}
33... b5 {[%clk 0:01:17.4]} 34. h4 {[%clk 0:00:59.5]} 34... b4 {[%clk 0:01:03]}
35. Rc2 {[%clk 0:00:55.9]} 35... Nd4 {[%clk 0:00:56.9]} 36. Rc1 {[%clk
0:00:51.6]} 36... Rg8 {[%clk 0:00:51.5]} 37. Kf1 {[%clk 0:00:50.6]} 37... Kf5
{[%clk 0:00:47.6]} 38. Re1 {[%clk 0:00:49.5]} 38... Re8 {[%clk 0:00:48.1]} 39.
h5 {[%clk 0:00:37.8]} 39... e3 {[%clk 0:00:45]} 40. h6 {[%clk 0:00:35.8]} 40...
Kxf4 {[%clk 0:00:44.7]} 41. Kg1 {[%clk 0:00:26]} 41... e2 {[%clk 0:00:45.1]} 42.
Kf2 {[%clk 0:00:24.1]} 42... Rh8 {[%clk 0:00:45.6]} 43. h4 {[%clk 0:00:19.1]}
43... Rxh6 {[%clk 0:00:45.9]} 44. Rh1 {[%clk 0:00:20]} 44... a5 {[%clk 0:00:41]}
45. h5 {[%clk 0:00:19.7]} 45... Kg5 {[%clk 0:00:40.9]} 46. Bf3 {[%clk 0:00:17]}
46... Rf6 {[%clk 0:00:41]} 47. h6 {[%clk 0:00:13.3]} 47... Rxf3+ {[%clk
0:00:40.2]} 48. Ke1 {[%clk 0:00:13.9]} 48... Rf8 {[%clk 0:00:41.1]} 49. h7
{[%clk 0:00:13.9]} 49... Rh8 {[%clk 0:00:41.6]} 50. Kd2 {[%clk 0:00:14.3]} 50...
Kg6 {[%clk 0:00:41.8]} 0-1

[Event "Early-Titled-Tuesday-Blitz-April-16-2024"]
[Site "Chess.com"]
[Date "2024.04.16"]
[Round "4"]
[White "superchess02"]
[Black "MITerryble"]
[Result "1-0"]
[WhiteElo "2895"]
[BlackElo "3062"]
[TimeControl "180+1"]
[EndTime "8:39:48 PDT"]
[Termination "superchess02 won by checkmate"]

1. d4 {[%clk 0:03:00.3]} 1... e6 {[%clk 0:02:59.9]} 2. c4 {[%clk 0:03:00.3]}
2... Bb4+ {[%clk 0:02:59.9]} 3. Bd2 {[%clk 0:03:00.2]} 3... Bxd2+ {[%clk
0:02:56.5]} 4. Qxd2 {[%clk 0:03:01.1]} 4... Nf6 {[%clk 0:02:56.9]} 5. Nc3 {[%clk
0:03:00.4]} 5... d6 {[%clk 0:02:57.5]} 6. Nf3 {[%clk 0:02:59.8]} 6... O-O {[%clk
0:02:57.2]} 7. g3 {[%clk 0:02:59.9]} 7... Qe7 {[%clk 0:02:57]} 8. Bg2 {[%clk
0:03:00.2]} 8... e5 {[%clk 0:02:57.6]} 9. O-O {[%clk 0:02:58.7]} 9... Re8 {[%clk
0:02:56.6]} 10. e3 {[%clk 0:02:32.1]} 10... Nbd7 {[%clk 0:02:42.7]} 11. Rac1
{[%clk 0:02:28.5]} 11... c6 {[%clk 0:02:33.6]} 12. Rfd1 {[%clk 0:02:28]} 12...
e4 {[%clk 0:02:33.9]} 13. Ng5 {[%clk 0:02:27.8]} 13... d5 {[%clk 0:02:29.8]} 14.
cxd5 {[%clk 0:02:27.8]} 14... cxd5 {[%clk 0:02:30.7]} 15. Nb5 {[%clk 0:02:22.1]}
15... Rd8 {[%clk 0:02:30.1]} 16. Nc7 {[%clk 0:02:17.7]} 16... Rb8 {[%clk
0:02:30.3]} 17. Qa5 {[%clk 0:02:17.3]} 17... Nf8 {[%clk 0:01:57.4]} 18. Qc5
{[%clk 0:01:47.9]} 18... Qxc5 {[%clk 0:01:26]} 19. dxc5 {[%clk 0:01:48.8]} 19...
Bg4 {[%clk 0:01:25.2]} 20. f3 {[%clk 0:01:06.4]} 20... exf3 {[%clk 0:01:17.2]}
21. Nxf3 {[%clk 0:01:05.6]} 21... Ne6 {[%clk 0:01:08.5]} 22. Nxe6 {[%clk
0:00:53.7]} 22... fxe6 {[%clk 0:01:09.4]} 23. h3 {[%clk 0:00:53.5]} 23... Bxf3
{[%clk 0:01:06.9]} 24. Bxf3 {[%clk 0:00:53.7]} 24... a5 {[%clk 0:01:01.1]} 25.
a3 {[%clk 0:00:52]} 25... Kf7 {[%clk 0:00:57.9]} 26. b4 {[%clk 0:00:52.1]} 26...
axb4 {[%clk 0:00:58.8]} 27. axb4 {[%clk 0:00:53]} 27... Ra8 {[%clk 0:00:59.7]}
28. Ra1 {[%clk 0:00:52.9]} 28... Ke7 {[%clk 0:00:58.1]} 29. Kf2 {[%clk 0:00:52]}
29... g5 {[%clk 0:00:40.8]} 30. Ke2 {[%clk 0:00:39.8]} 30... h6 {[%clk
0:00:40.7]} 31. Kd3 {[%clk 0:00:30.5]} 31... e5 {[%clk 0:00:41.1]} 32. Kc3
{[%clk 0:00:30.4]} 32... Ke6 {[%clk 0:00:37]} 33. b5 {[%clk 0:00:27.5]} 33...
Rac8 {[%clk 0:00:25.6]} 34. Kb4 {[%clk 0:00:26.2]} 34... Rd7 {[%clk 0:00:24.7]}
35. Rac1 {[%clk 0:00:20.9]} 35... Ra8 {[%clk 0:00:22.3]} 36. Ra1 {[%clk
0:00:20.7]} 36... Rc8 {[%clk 0:00:22.4]} 37. Ra7 {[%clk 0:00:19]} 37... Rdc7
{[%clk 0:00:21.9]} 38. Rc1 {[%clk 0:00:18.1]} 38... e4 {[%clk 0:00:22]} 39. Be2
{[%clk 0:00:17.7]} 39... Ke5 {[%clk 0:00:22.5]} 40. b6 {[%clk 0:00:17.7]} 40...
Rh7 {[%clk 0:00:20]} 41. c6 {[%clk 0:00:14.7]} 41... bxc6 {[%clk 0:00:19.3]} 42.
Rxh7 {[%clk 0:00:15.1]} 42... Nxh7 {[%clk 0:00:20.2]} 43. Bg4 {[%clk 0:00:15.5]}
43... Rb8 {[%clk 0:00:18.5]} 44. Rxc6 {[%clk 0:00:15.7]} 44... Nf6 {[%clk
0:00:19.4]} 45. Re6# {[%clk 0:00:15.7]} 1-0

[Event "Early-Titled-Tuesday-Blitz-April-16-2024"]
[Site "Chess.com"]
[Date "2024.04.16"]
[Round "4"]
[White "FeketeBarika"]
[Black "LubovMarkelova"]
[Result "0-1"]
[WhiteElo "2338"]
[BlackElo "2207"]
[TimeControl "180+1"]
[EndTime "8:39:50 PDT"]
[Termination "LubovMarkelova won by resignation"]

1. Nf3 {[%clk 0:02:33.2]} 1... d5 {[%clk 0:02:59.2]} 2. g3 {[%clk 0:02:34.1]}
2... Nf6 {[%clk 0:02:58.9]} 3. Bg2 {[%clk 0:02:33.8]} 3... c6 {[%clk 0:02:59.8]}
4. O-O {[%clk 0:02:34.2]} 4... Bf5 {[%clk 0:03:00.4]} 5. c4 {[%clk 0:02:34.4]}
5... h6 {[%clk 0:03:00.1]} 6. cxd5 {[%clk 0:02:34.9]} 6... cxd5 {[%clk
0:03:00.3]} 7. Nd4 {[%clk 0:02:34.8]} 7... Bh7 {[%clk 0:02:58.8]} 8. Qa4+ {[%clk
0:02:33.6]} 8... Qd7 {[%clk 0:02:56.2]} 9. Qb3 {[%clk 0:02:22.5]} 9... Nc6
{[%clk 0:02:49.3]} 10. Nxc6 {[%clk 0:02:19.7]} 10... bxc6 {[%clk 0:02:49.3]} 11.
Nc3 {[%clk 0:02:19.7]} 11... e5 {[%clk 0:02:49]} 12. e4 {[%clk 0:02:13.8]} 12...
d4 {[%clk 0:02:44.2]} 13. Na4 {[%clk 0:02:12.5]} 13... Bd6 {[%clk 0:02:40.1]}
14. d3 {[%clk 0:02:11.5]} 14... O-O {[%clk 0:02:39.3]} 15. Bd2 {[%clk 0:02:12]}
15... Rab8 {[%clk 0:02:38.7]} 16. Qc2 {[%clk 0:02:11.3]} 16... c5 {[%clk
0:02:35.1]} 17. b3 {[%clk 0:02:10.2]} 17... Rfc8 {[%clk 0:02:08.5]} 18. Rac1
{[%clk 0:01:50.5]} 18... Qb7 {[%clk 0:02:00.8]} 19. Qd1 {[%clk 0:01:42.5]} 19...
Qa6 {[%clk 0:01:57.1]} 20. f4 {[%clk 0:01:41.7]} 20... Qxd3 {[%clk 0:01:54.9]}
21. fxe5 {[%clk 0:01:38.9]} 21... Bxe5 {[%clk 0:01:46.7]} 22. Rf3 {[%clk
0:01:16.7]} 22... Qb5 {[%clk 0:01:40.7]} 23. Bf1 {[%clk 0:01:02.1]} 23... Qe8
{[%clk 0:01:26.6]} 24. Bc4 {[%clk 0:00:56.8]} 24... Bxe4 {[%clk 0:01:25]} 25.
Rf1 {[%clk 0:00:55.6]} 25... Bd5 {[%clk 0:01:19.6]} 26. Bd3 {[%clk 0:00:44.9]}
26... Bd6 {[%clk 0:01:13.8]} 27. Qc2 {[%clk 0:00:42]} 27... Qd8 {[%clk
0:00:53.9]} 28. Nb2 {[%clk 0:00:27.3]} 28... Qc7 {[%clk 0:00:51.3]} 29. Nc4
{[%clk 0:00:26]} 29... Bxg3 {[%clk 0:00:49.1]} 30. Rxf6 {[%clk 0:00:20.4]} 30...
Bxh2+ {[%clk 0:00:48.4]} 31. Kf1 {[%clk 0:00:21.1]} 31... gxf6 {[%clk
0:00:46.8]} 32. Bxh6 {[%clk 0:00:21.5]} 32... Qg3 {[%clk 0:00:42.1]} 33. Qf2
{[%clk 0:00:20.6]} 33... Qxf2+ {[%clk 0:00:38]} 34. Kxf2 {[%clk 0:00:21.5]}
34... Re8 {[%clk 0:00:18.7]} 35. Nd2 {[%clk 0:00:21.8]} 35... Re5 {[%clk
0:00:14.8]} 36. Nf3 {[%clk 0:00:21.7]} 36... Bxf3 {[%clk 0:00:14.3]} 37. Kxf3
{[%clk 0:00:22.6]} 37... Rh5 {[%clk 0:00:11.4]} 38. Bd2 {[%clk 0:00:21.6]} 38...
Rh3+ {[%clk 0:00:10.6]} 39. Ke4 {[%clk 0:00:19.9]} 39... Re8+ {[%clk 0:00:10.6]}
40. Kd5 {[%clk 0:00:20.5]} 40... Rxd3 {[%clk 0:00:10.9]} 41. Rd1 {[%clk
0:00:18.6]} 41... Bf4 {[%clk 0:00:10.3]} 42. Rg1+ {[%clk 0:00:17.8]} 42... Rg3
{[%clk 0:00:08.7]} 0-1

[Event "Early-Titled-Tuesday-Blitz-April-16-2024"]
[Site "Chess.com"]
[Date "2024.04.16"]
[Round "4"]
[White "SmirnovTimofey2000"]
[Black "Gryffindorac8"]
[Result "0-1"]
[WhiteElo "1964"]
[BlackElo "2443"]
[TimeControl "180+1"]
[EndTime "8:39:51 PDT"]
[Termination "Gryffindorac8 won by checkmate"]

1. e4 {[%clk 0:02:57.8]} 1... c5 {[%clk 0:02:59.8]} 2. c3 {[%clk 0:02:57.6]}
2... Nf6 {[%clk 0:02:59.5]} 3. e5 {[%clk 0:02:57.3]} 3... Nd5 {[%clk 0:02:59.7]}
4. Nf3 {[%clk 0:02:56.6]} 4... d6 {[%clk 0:02:58.4]} 5. exd6 {[%clk 0:02:49.8]}
5... Qxd6 {[%clk 0:02:52.6]} 6. Bc4 {[%clk 0:02:49.8]} 6... e6 {[%clk
0:02:51.6]} 7. O-O {[%clk 0:02:49.3]} 7... Nc6 {[%clk 0:02:51.3]} 8. Na3 {[%clk
0:02:42.7]} 8... a6 {[%clk 0:02:47.7]} 9. Re1 {[%clk 0:02:33.7]} 9... Be7 {[%clk
0:02:45.8]} 10. d4 {[%clk 0:02:23.2]} 10... cxd4 {[%clk 0:02:42.6]} 11. Nxd4
{[%clk 0:02:22.9]} 11... O-O {[%clk 0:02:30.7]} 12. Bxd5 {[%clk 0:02:18.8]}
12... Qxd5 {[%clk 0:02:25]} 13. Nxc6 {[%clk 0:02:17.3]} 13... Qxc6 {[%clk
0:02:24.4]} 14. Nc2 {[%clk 0:02:11.1]} 14... b5 {[%clk 0:02:16.9]} 15. Nd4
{[%clk 0:02:10.7]} 15... Qc7 {[%clk 0:02:16]} 16. Qf3 {[%clk 0:02:10.8]} 16...
Bb7 {[%clk 0:02:14.6]} 17. Qf4 {[%clk 0:02:11.2]} 17... Bd6 {[%clk 0:01:52]} 18.
Qg4 {[%clk 0:02:04.9]} 18... Bxh2+ {[%clk 0:01:49.7]} 19. Kh1 {[%clk 0:02:05.4]}
19... Be5 {[%clk 0:01:47.4]} 20. Nxe6 {[%clk 0:01:59.8]} 20... fxe6 {[%clk
0:01:38.8]} 21. Qxe6+ {[%clk 0:01:59.8]} 21... Kh8 {[%clk 0:01:33.2]} 22. Qxe5
{[%clk 0:02:00.1]} 22... Qxe5 {[%clk 0:01:31.7]} 23. Rxe5 {[%clk 0:01:58.2]}
23... Rxf2 {[%clk 0:01:31]} 24. Be3 {[%clk 0:01:44.1]} 24... Rxg2 {[%clk
0:01:27.3]} 25. Bd4 {[%clk 0:01:33.5]} 25... Rxb2+ {[%clk 0:01:03]} 26. Kg1
{[%clk 0:01:33.6]} 26... Rg2+ {[%clk 0:01:02.4]} 27. Kf1 {[%clk 0:01:30.9]}
27... Rf8+ {[%clk 0:01:01.5]} 28. Ke1 {[%clk 0:01:22.4]} 28... Bf3 {[%clk
0:00:58.9]} 29. a4 {[%clk 0:00:57.6]} 29... h5 {[%clk 0:00:51.4]} 30. axb5
{[%clk 0:00:57.5]} 30... axb5 {[%clk 0:00:49.3]} 31. Ra7 {[%clk 0:00:51]} 31...
h4 {[%clk 0:00:42]} 32. Ree7 {[%clk 0:00:47.7]} 32... Rg8 {[%clk 0:00:39.9]} 33.
Rf7 {[%clk 0:00:39.9]} 33... Be2 {[%clk 0:00:26]} 34. Rf4 {[%clk 0:00:30.2]}
34... Bg4 {[%clk 0:00:21.3]} 35. Kf1 {[%clk 0:00:17.3]} 35... h3 {[%clk
0:00:21.3]} 36. Rb7 {[%clk 0:00:10.9]} 36... Kh7 {[%clk 0:00:20.7]} 37. Rxb5
{[%clk 0:00:10.3]} 37... Be2+ {[%clk 0:00:20]} 38. Ke1 {[%clk 0:00:07.4]} 38...
Bxb5 {[%clk 0:00:20.5]} 39. Rh4+ {[%clk 0:00:05.5]} 39... Kg6 {[%clk 0:00:20.3]}
40. Rxh3 {[%clk 0:00:05.5]} 40... Ra8 {[%clk 0:00:20.3]} 41. Kd1 {[%clk
0:00:01.5]} 41... Ra1# {[%clk 0:00:18.5]} 0-1

[Event "Early-Titled-Tuesday-Blitz-April-16-2024"]
[Site "Chess.com"]
[Date "2024.04.16"]
[Round "4"]
[White "IshviAggarwal"]
[Black "GAO"]
[Result "1/2-1/2"]
[WhiteElo "2136"]
[BlackElo "2325"]
[TimeControl "180+1"]
[EndTime "8:39:52 PDT"]
[Termination "Game drawn by agreement"]

1. e4 {[%clk 0:03:00.9]} 1... c5 {[%clk 0:02:59.7]} 2. Nc3 {[%clk 0:02:54.6]}
2... Nc6 {[%clk 0:02:59.2]} 3. f4 {[%clk 0:02:55]} 3... g6 {[%clk 0:02:55.8]} 4.
Nf3 {[%clk 0:02:55.6]} 4... Bg7 {[%clk 0:02:52.8]} 5. Bc4 {[%clk 0:02:56.2]}
5... e6 {[%clk 0:02:46.2]} 6. O-O {[%clk 0:02:55.4]} 6... Nge7 {[%clk
0:02:37.8]} 7. d3 {[%clk 0:02:55.1]} 7... d5 {[%clk 0:02:31.5]} 8. Bb3 {[%clk
0:02:52.3]} 8... O-O {[%clk 0:02:14.7]} 9. a3 {[%clk 0:02:51.2]} 9... Rb8 {[%clk
0:01:55.8]} 10. Qe1 {[%clk 0:02:39.7]} 10... b5 {[%clk 0:01:56]} 11. Qh4 {[%clk
0:02:40.1]} 11... c4 {[%clk 0:01:56.3]} 12. Ba2 {[%clk 0:02:28.7]} 12... a5
{[%clk 0:01:53.4]} 13. Bb1 {[%clk 0:02:26.2]} 13... b4 {[%clk 0:01:53.1]} 14.
axb4 {[%clk 0:02:25.4]} 14... axb4 {[%clk 0:01:54]} 15. Na4 {[%clk 0:02:26.1]}
15... Ra8 {[%clk 0:01:52.3]} 16. c3 {[%clk 0:02:21.6]} 16... bxc3 {[%clk
0:01:40.3]} 17. bxc3 {[%clk 0:02:22.5]} 17... cxd3 {[%clk 0:01:36.3]} 18. Bxd3
{[%clk 0:02:21.8]} 18... dxe4 {[%clk 0:01:34.6]} 19. Bxe4 {[%clk 0:02:21.6]}
19... Bb7 {[%clk 0:01:35]} 20. Be3 {[%clk 0:02:12]} 20... Nf5 {[%clk 0:01:23.7]}
21. Bxf5 {[%clk 0:02:11.4]} 21... Qxh4 {[%clk 0:01:22]} 22. Nxh4 {[%clk
0:02:02.7]} 22... exf5 {[%clk 0:01:19.8]} 23. Nc5 {[%clk 0:02:00.2]} 23... Rxa1
{[%clk 0:01:16.9]} 24. Rxa1 {[%clk 0:02:01.1]} 24... Bc8 {[%clk 0:01:16.2]} 25.
Nf3 {[%clk 0:01:54]} 25... Re8 {[%clk 0:01:13.8]} 26. Bd4 {[%clk 0:01:52.4]}
26... Bf8 {[%clk 0:01:08.8]} 27. Ra8 {[%clk 0:01:46.5]} 27... Bd7 {[%clk
0:00:58.5]} 28. Rxe8 {[%clk 0:01:12.5]} 28... Bxe8 {[%clk 0:00:59.4]} 29. Ne5
{[%clk 0:01:12.7]} 29... Nxe5 {[%clk 0:00:49.7]} 30. fxe5 {[%clk 0:01:13.6]}
30... Bxc5 {[%clk 0:00:49.7]} 31. Bxc5 {[%clk 0:01:13.3]} 31... Bc6 {[%clk
0:00:50.6]} 32. g3 {[%clk 0:01:12.1]} 32... Kg7 {[%clk 0:00:50.8]} 33. Kf2
{[%clk 0:01:12.2]} 33... g5 {[%clk 0:00:48]} 34. Be7 {[%clk 0:01:12.3]} 34...
Kg6 {[%clk 0:00:47.6]} 35. Ke3 {[%clk 0:01:10.6]} 35... h5 {[%clk 0:00:47.6]}
36. h4 {[%clk 0:01:06.8]} 36... f4+ {[%clk 0:00:40.8]} 37. gxf4 {[%clk
0:01:05.4]} 37... g4 {[%clk 0:00:41.7]} 38. Kf2 {[%clk 0:00:48.5]} 38... Kf5
{[%clk 0:00:41.5]} 39. Kg3 {[%clk 0:00:21.3]} 39... Ke4 {[%clk 0:00:41.3]} 40.
Bb4 {[%clk 0:00:19.3]} 40... Bd7 {[%clk 0:00:41]} 41. Ba5 {[%clk 0:00:17.8]}
41... Bc6 {[%clk 0:00:38.1]} 42. Bd8 {[%clk 0:00:17.3]} 42... Bd5 {[%clk
0:00:37.9]} 43. Bg5 {[%clk 0:00:14.8]} 43... Be6 {[%clk 0:00:36.2]} 44. Be7
{[%clk 0:00:14.3]} 44... Kd3 {[%clk 0:00:36.5]} 45. Bb4 {[%clk 0:00:13.3]} 45...
Ke4 {[%clk 0:00:37.1]} 46. Ba5 {[%clk 0:00:12.7]} 1/2-1/2

[Event "Early-Titled-Tuesday-Blitz-April-16-2024"]
[Site "Chess.com"]
[Date "2024.04.16"]
[Round "4"]
[White "sathvikadiga"]
[Black "michaelskie11"]
[Result "1-0"]
[WhiteElo "2591"]
[BlackElo "2379"]
[TimeControl "180+1"]
[EndTime "8:39:53 PDT"]
[Termination "sathvikadiga won by resignation"]

1. e4 {[%clk 0:03:00.9]} 1... e6 {[%clk 0:02:59.3]} 2. d4 {[%clk 0:03:00.5]}
2... d5 {[%clk 0:02:59.4]} 3. Bd3 {[%clk 0:03:01.2]} 3... c5 {[%clk 0:02:58.2]}
4. exd5 {[%clk 0:03:01]} 4... exd5 {[%clk 0:02:58.1]} 5. Nf3 {[%clk 0:03:01.7]}
5... c4 {[%clk 0:02:57.3]} 6. Be2 {[%clk 0:03:01.9]} 6... Bd6 {[%clk 0:02:57.6]}
7. O-O {[%clk 0:03:02.8]} 7... Ne7 {[%clk 0:02:57.9]} 8. b3 {[%clk 0:03:02.4]}
8... b5 {[%clk 0:02:57.6]} 9. a4 {[%clk 0:03:02.2]} 9... a6 {[%clk 0:02:23]} 10.
axb5 {[%clk 0:03:02]} 10... cxb3 {[%clk 0:02:22.4]} 11. cxb3 {[%clk 0:03:02.9]}
11... O-O {[%clk 0:02:21.8]} 12. Nc3 {[%clk 0:03:02.5]} 12... Bb7 {[%clk
0:02:04.8]} 13. bxa6 {[%clk 0:02:59.5]} 13... Nxa6 {[%clk 0:02:03.8]} 14. Ne5
{[%clk 0:02:59.2]} 14... Nb4 {[%clk 0:02:03.4]} 15. Rxa8 {[%clk 0:02:53.2]}
15... Qxa8 {[%clk 0:02:04.3]} 16. Be3 {[%clk 0:02:53.9]} 16... Nf5 {[%clk
0:02:03.5]} 17. Qd2 {[%clk 0:02:49]} 17... Rc8 {[%clk 0:02:00]} 18. Nb5 {[%clk
0:02:34.3]} 18... Bf8 {[%clk 0:01:53.9]} 19. Rc1 {[%clk 0:02:32.5]} 19... Rxc1+
{[%clk 0:01:48.5]} 20. Qxc1 {[%clk 0:02:33.3]} 20... Qa2 {[%clk 0:01:48.8]} 21.
Bd1 {[%clk 0:02:17.8]} 21... Nxe3 {[%clk 0:01:21]} 22. Qxe3 {[%clk 0:02:18.7]}
22... Qb1 {[%clk 0:01:20.7]} 23. Qd2 {[%clk 0:02:08.8]} 23... Ba6 {[%clk
0:01:19.3]} 24. Nc3 {[%clk 0:02:06.5]} 24... Qa1 {[%clk 0:01:19.7]} 25. g3
{[%clk 0:01:56.5]} 25... h6 {[%clk 0:01:12.8]} 26. Kg2 {[%clk 0:01:53.6]} 26...
Bd6 {[%clk 0:01:03.3]} 27. Be2 {[%clk 0:01:47.5]} 27... Bxe2 {[%clk 0:00:59.7]}
28. Nxe2 {[%clk 0:01:48.4]} 28... Bxe5 {[%clk 0:00:59.4]} 29. Qxb4 {[%clk
0:01:48.1]} 29... Bf6 {[%clk 0:00:54.5]} 30. Qd2 {[%clk 0:01:33.2]} 30... Qb1
{[%clk 0:00:51.5]} 31. Qe3 {[%clk 0:01:25.6]} 31... Bg5 {[%clk 0:00:49.8]} 32.
Qf3 {[%clk 0:01:15.8]} 32... Bf6 {[%clk 0:00:44.5]} 33. Qxd5 {[%clk 0:01:13.8]}
33... g6 {[%clk 0:00:39.3]} 34. f3 {[%clk 0:00:52.2]} 34... Kg7 {[%clk
0:00:37.9]} 35. Qc4 {[%clk 0:00:50.1]} 35... h5 {[%clk 0:00:33.8]} 36. h4 {[%clk
0:00:46.3]} 36... Qb2 {[%clk 0:00:32.1]} 37. b4 {[%clk 0:00:41.1]} 37... Kg8
{[%clk 0:00:27.6]} 38. d5 {[%clk 0:00:38.6]} 38... Be5 {[%clk 0:00:25.3]} 39. b5
{[%clk 0:00:34.2]} 39... Kg7 {[%clk 0:00:23.6]} 40. Kf2 {[%clk 0:00:27.3]} 40...
Bb8 {[%clk 0:00:20.2]} 41. Qd4+ {[%clk 0:00:25.1]} 41... Qxd4+ {[%clk
0:00:19.6]} 42. Nxd4 {[%clk 0:00:26]} 1-0

[Event "Early-Titled-Tuesday-Blitz-April-16-2024"]
[Site "Chess.com"]
[Date "2024.04.16"]
[Round "4"]
[White "Aygehovit1992"]
[Black "Likvidator228"]
[Result "0-1"]
[WhiteElo "2723"]
[BlackElo "2561"]
[TimeControl "180+1"]
[EndTime "8:39:54 PDT"]
[Termination "Likvidator228 won by checkmate"]

1. e4 {[%clk 0:03:00.9]} 1... c5 {[%clk 0:03:00]} 2. Nf3 {[%clk 0:02:59.7]} 2...
g6 {[%clk 0:03:00.2]} 3. c3 {[%clk 0:02:59.6]} 3... Bg7 {[%clk 0:02:57.7]} 4. d4
{[%clk 0:02:59.6]} 4... cxd4 {[%clk 0:02:58.6]} 5. cxd4 {[%clk 0:03:00.5]} 5...
d5 {[%clk 0:02:59.3]} 6. e5 {[%clk 0:03:01.1]} 6... a6 {[%clk 0:02:59.8]} 7. Bd3
{[%clk 0:02:48.1]} 7... Bg4 {[%clk 0:02:58]} 8. Nbd2 {[%clk 0:02:48.1]} 8... Nc6
{[%clk 0:02:57.6]} 9. h3 {[%clk 0:02:48.4]} 9... Bxf3 {[%clk 0:02:57.4]} 10.
Nxf3 {[%clk 0:02:49.3]} 10... e6 {[%clk 0:02:58]} 11. O-O {[%clk 0:02:45.6]}
11... h6 {[%clk 0:02:56.8]} 12. b4 {[%clk 0:02:27.2]} 12... Nxb4 {[%clk
0:02:40.3]} 13. Qa4+ {[%clk 0:02:21.6]} 13... Nc6 {[%clk 0:02:40.5]} 14. Rb1
{[%clk 0:02:21.6]} 14... b5 {[%clk 0:02:35.4]} 15. Qc2 {[%clk 0:02:20.9]} 15...
Nge7 {[%clk 0:02:35.1]} 16. a4 {[%clk 0:02:17.6]} 16... b4 {[%clk 0:02:16.5]}
17. Bd2 {[%clk 0:02:17.7]} 17... a5 {[%clk 0:02:16.2]} 18. Bb5 {[%clk 0:02:18]}
18... Rc8 {[%clk 0:02:15.9]} 19. Rfc1 {[%clk 0:02:14.6]} 19... O-O {[%clk
0:02:14.7]} 20. Qd3 {[%clk 0:02:10.5]} 20... Qb6 {[%clk 0:02:06.2]} 21. g4
{[%clk 0:02:05.6]} 21... Na7 {[%clk 0:01:51.5]} 22. Ba6 {[%clk 0:02:05]} 22...
Rxc1+ {[%clk 0:01:50.5]} 23. Rxc1 {[%clk 0:02:05.9]} 23... Rb8 {[%clk
0:01:44.9]} 24. Be3 {[%clk 0:01:48.1]} 24... Bf8 {[%clk 0:01:44.5]} 25. Nd2
{[%clk 0:01:45.2]} 25... b3 {[%clk 0:01:41.6]} 26. Rb1 {[%clk 0:01:42.9]} 26...
b2 {[%clk 0:01:41.1]} 27. Bb5 {[%clk 0:01:38.5]} 27... Nec6 {[%clk 0:01:35.7]}
28. Rxb2 {[%clk 0:01:00.9]} 28... Nb4 {[%clk 0:01:35.7]} 29. Qb1 {[%clk
0:00:44.7]} 29... Nxb5 {[%clk 0:01:35.7]} 30. axb5 {[%clk 0:00:45.6]} 30... Qxb5
{[%clk 0:01:34.8]} 31. Qa1 {[%clk 0:00:21]} 31... a4 {[%clk 0:01:27.1]} 32. Nb1
{[%clk 0:00:20.1]} 32... Ra8 {[%clk 0:01:13.4]} 33. Bd2 {[%clk 0:00:14.7]} 33...
Qc4 {[%clk 0:01:09]} 34. Na3 {[%clk 0:00:14.9]} 34... Qxd4 {[%clk 0:01:05]} 35.
Bxb4 {[%clk 0:00:15.3]} 35... Bxb4 {[%clk 0:00:59.8]} 36. Nc2 {[%clk 0:00:15.9]}
36... Qc3 {[%clk 0:00:38]} 37. Nxb4 {[%clk 0:00:15.3]} 37... a3 {[%clk
0:00:38.3]} 38. Rb1 {[%clk 0:00:15.8]} 38... Qxh3 {[%clk 0:00:38.5]} 39. Nc2
{[%clk 0:00:09.8]} 39... Qxg4+ {[%clk 0:00:38.6]} 40. Kh2 {[%clk 0:00:07.7]}
40... Qf4+ {[%clk 0:00:35.3]} 41. Kg1 {[%clk 0:00:07.5]} 41... Qg5+ {[%clk
0:00:33.8]} 42. Kf1 {[%clk 0:00:07.4]} 42... Qh4 {[%clk 0:00:30.4]} 43. Ne3
{[%clk 0:00:06.9]} 43... a2 {[%clk 0:00:27.8]} 44. Rc1 {[%clk 0:00:06.9]} 44...
d4 {[%clk 0:00:25.4]} 45. Nd1 {[%clk 0:00:05.7]} 45... d3 {[%clk 0:00:23.4]} 46.
Nc3 {[%clk 0:00:05.9]} 46... Qh1# {[%clk 0:00:23.2]} 0-1